fUSD/lending_fUSD_20250607
["ID","MTS","AMOUNT","RATE_DAILY","PERIOD"]
[364891514,1749285060414,-2000.0,0.00030199,2]
[364891515,1749285060423,-1067.88,0.000302,2]
[364891516,1749285060432,-1681.21,0.000302,2]
[364891517,1749285060440,-2749.29,0.000302,2]
[364891518,1749285060450,-2749.3,0.000302,2]
[364891519,1749285060458,-2749.29,0.000302,2]
[364891520,1749285060467,-2453.79,0.000302,2]
[364891521,1749285060476,-587.78,0.000302,2]
[364891522,1749285060485,-3118.73,0.000302,2]
[364891523,1749285060494,-197452.36,0.000302,7]
[364891524,1749285060503,-151.0,0.000302,7]
[364891525,1749285060512,-151.0,0.000302,7]
[364891526,1749285060521,-151.0,0.000302,7]
[364891527,1749285060530,-151.0,0.000302,7]
[364891528,1749285060538,-151.0,0.000302,7]
[364891529,1749285060547,-1439.761915,0.000302,7]
[364891530,1749285060556,-151.0,0.000302,7]
[364891531,1749285060565,-151.0,0.000302,7]
[364891532,1749285060574,-1439.761915,0.000302,7]
[364891533,1749285060583,-151.0,0.000302,7]
[364891534,1749285060592,-151.0,0.000302,7]
[364891535,1749285060601,-151.0,0.000302,7]
[364891536,1749285060610,-151.0,0.000302,7]
[364891537,1749285060619,-151.0,0.000302,7]
[364891538,1749285060628,-151.0,0.000302,7]
[364891539,1749285060637,-263.744879,0.000302,7]
[364891540,1749285060646,-263.744879,0.000302,7]
[364891541,1749285060656,-151.0,0.000302,7]
[364891542,1749285060667,-192.752747,0.000302,7]
[364891543,1749285060675,-192.752747,0.000302,7]
[364891544,1749285060685,-153.754553,0.000302,7]
[364891545,1749285060697,-153.754553,0.000302,7]
[364891546,1749285060707,-977.448713,0.000302,7]
[364891547,1749285060716,-977.448713,0.000302,7]
[364891548,1749285060724,-151.0,0.000302,7]
[364891549,1749285060734,-179.340194,0.000302,7]
[364891550,1749285060744,-179.340194,0.000302,7]
[364891551,1749285060754,-151.0,0.000302,7]
[364891552,1749285060763,-196.779148,0.000302,7]
[364891553,1749285060772,-196.779148,0.000302,7]
[364891554,1749285060781,-862.422387,0.000302,7]
[364891555,1749285060790,-862.422387,0.000302,7]
[364891556,1749285060799,-157.98744,0.000302,7]
[364891557,1749285060808,-151.0,0.000302,7]
[364891558,1749285060818,-151.0,0.000302,7]
[364891559,1749285060829,-177.040968,0.000302,7]
[364891560,1749285060839,-1642.080816,0.000302,7]
[364891561,1749285060848,-151.0,0.000302,7]
[364891562,1749285060857,-177.040968,0.000302,7]
[364891563,1749285060866,-1642.080816,0.000302,7]
[364891564,1749285060876,-185.707612,0.000302,7]
[364891565,1749285060885,-185.707613,0.000302,7]
[364891566,1749285060894,-151.0,0.000302,7]
[364891567,1749285060903,-151.0,0.000302,7]
[364891568,1749285060912,-463.505806,0.000302,7]
[364891569,1749285060922,-645.346851,0.000302,7]
[364891570,1749285060932,-463.505806,0.000302,7]
[364891571,1749285060941,-645.346851,0.000302,7]
[364891572,1749285060951,-2026.87948,0.000302,7]
[364891573,1749285060961,-2026.87948,0.000302,7]
[364891574,1749285060970,-204.807093,0.000302,7]
[364891575,1749285060979,-151.0,0.000302,7]
[364891576,1749285060990,-347.722307,0.000302,7]
[364891577,1749285060999,-347.722316,0.000302,7]
[364891578,1749285061009,-155.562117,0.000302,7]
[364891579,1749285061018,-155.562117,0.000302,7]
[364891580,1749285061028,-151.0,0.000302,7]
[364891581,1749285061039,-572.91785,0.000302,7]
[364891582,1749285061048,-572.917847,0.000302,7]
[364891583,1749285061057,-205.49714,0.000302,7]
[364891584,1749285061067,-205.49714,0.000302,7]
[364891585,1749285061077,-191.753818,0.000302,7]
[364891586,1749285061086,-191.753819,0.000302,7]
[364891587,1749285061095,-150.0,0.00030205,7]
[364891588,1749285061104,-150.0,0.00030212,7]
[364891589,1749285061113,-279.10775981,0.00030217,7]
[364891590,1749285061122,-218.84593086,0.00030217,7]
[364891591,1749285061131,-500.0,0.00030219,5]
[364891592,1749285061141,-150.0,0.0003022,7]
[364891593,1749285061151,-150.0,0.00030224,7]
[364891594,1749285061160,-150.0,0.00030231,7]
[364891595,1749285061169,-279.10775981,0.00030236,7]
[364891596,1749285061178,-218.84593086,0.00030236,7]
[364891597,1749285061187,-151.0,0.00030243,7]
[364891598,1749285061196,-151.0,0.00030243,7]
[364891599,1749285061205,-667.336566,0.00030243,7]
[364891600,1749285061215,-667.336566,0.00030243,7]
[364891601,1749285061224,-162.719513,0.00030243,7]
[364891602,1749285061233,-412.452198,0.00030243,7]
[364891603,1749285061242,-412.452198,0.00030243,7]
[364891604,1749285061251,-500.0,0.00030247,5]
[364891605,1749285061261,-150.0,0.0003025,2]
[364891606,1749285061271,-300.0,0.0003025,2]
[364891607,1749285061280,-300.0,0.0003025,2]
[364891608,1749285061289,-150.0,0.00030252,7]
[364891609,1749285061299,-279.10775981,0.00030256,7]
[364891610,1749285061307,-218.84593086,0.00030256,7]
[364891611,1749285061317,-150.0,0.00030257,7]
[364891612,1749285061326,-150.0,0.0003026,7]
[364891613,1749285061335,-150.0,0.00030262,7]
[364891614,1749285061344,-150.0,0.00030268,7]
[364891615,1749285061353,-305.29,0.00030269,2]
[364891616,1749285061362,-500.0,0.00030274,5]
[364891617,1749285061371,-279.10775981,0.00030276,7]
[364891618,1749285061380,-218.84593086,0.00030276,7]
[364891619,1749285061391,-1000.0,0.00030277,7]
[364891620,1749285061401,-150.0,0.0003028,7]
[364891621,1749285061410,-150.0,0.00030281,2]
[364891622,1749285061419,-150.0,0.00030284,7]
[364891623,1749285061428,-279.10775981,0.00030295,7]
[364891624,1749285061437,-218.84593086,0.00030295,7]
[364891625,1749285061447,-150.0,0.000303,7]
[364891626,1749285061456,-209.4,0.000303,3]
[364891627,1749285061466,-209.4,0.000303,3]
[364891628,1749285061475,-500.0,0.00030301,5]
[364891629,1749285061485,-150.0,0.00030308,7]
[364891630,1749285061495,-150.0,0.0003031,7]
[364891631,1749285061504,-150.0,0.00030312,7]
[364891632,1749285061514,-150.0,0.00030312,7]
[364891633,1749285061524,-279.10775981,0.00030315,7]
[364891634,1749285061533,-218.84593086,0.00030315,7]
[364891635,1749285061543,-150.0,0.00030317,2]
[364891636,1749285061552,-500.0,0.00030329,5]
[364891637,1749285061561,-279.10775981,0.00030335,7]
[364891638,1749285061571,-218.84593086,0.00030335,7]
[364891639,1749285061580,-150.0,0.00030335,7]
[364891640,1749285061589,-150.0,0.00030336,7]
[364891641,1749285061598,-150.0,0.00030339,7]
[364891642,1749285061608,-150.0,0.00030349,7]
[364891643,1749285061617,-150.0,0.00030349,7]
[364891644,1749285061627,-150.0,0.00030349,7]
[364891645,1749285061636,-279.10775981,0.00030354,7]
[364891646,1749285061646,-218.84593086,0.00030354,7]
[364891647,1749285061654,-636.82,0.00030356,5]
[364891648,1749285061663,-151.0,0.00030356,7]
[364891649,1749285061673,-151.0,0.00030356,7]
[364891650,1749285061682,-151.0,0.00030356,7]
[364891651,1749285061692,-151.0,0.00030356,7]
[364891652,1749285061703,-256.632091,0.00030356,7]
[364891653,1749285061713,-256.632091,0.00030356,7]
[364891654,1749285061722,-850.307111,0.00030356,7]
[364891655,1749285061732,-850.307111,0.00030356,7]
[364891656,1749285061742,-500.0,0.00030356,5]
[364891657,1749285061751,-150.0,0.00030362,7]
[364891658,1749285061760,-150.0,0.00030362,7]
[364891659,1749285061770,-150.0,0.00030363,7]
[364891660,1749285061779,-168.3888056,0.00030369,2]
[364891661,1749285061789,-231.28369723,0.00030369,2]
[364891662,1749285061798,-700.0,0.0003037,2]
[364891663,1749285061808,-297.50576724,0.00030371,2]
[364891664,1749285061817,-279.10775981,0.00030374,7]
[364891665,1749285061826,-218.84593086,0.00030374,7]
[364891666,1749285061835,-150.0,0.00030379,7]
[364891667,1749285061845,-2985.2313671,0.00030383,22]
[364891668,1749285061854,-500.0,0.00030384,5]
[364891669,1749285061864,-150.0,0.00030389,7]
[364891670,1749285061875,-150.0,0.00030391,7]
[364891671,1749285061885,-279.10775981,0.00030393,7]
[364891672,1749285061894,-218.84593086,0.00030393,7]
[364891673,1749285061903,-2000.0,0.00030399,2]
[364891674,1749285061913,-155.0,0.00030411,14]
[364891675,1749285061923,-500.0,0.00030411,5]
[364891676,1749285061933,-150.0,0.00030412,7]
[364891677,1749285061944,-279.10775981,0.00030413,7]
[364891678,1749285061953,-218.84593086,0.00030413,7]
[364891679,1749285061963,-1000.0,0.00030414,7]
[364891680,1749285061972,-150.0,0.00030415,7]
[364891681,1749285061983,-150.0,0.00030419,7]
[364891682,1749285061993,-150.0,0.00030419,7]
[364891683,1749285062002,-150.0,0.00030419,7]
[364891684,1749285062012,-151.0,0.00030427,7]
[364891685,1749285062021,-151.0,0.00030427,7]
[364891686,1749285062031,-151.0,0.00030427,7]
[364891687,1749285062041,-151.0,0.00030427,7]
[364891688,1749285062051,-151.0,0.00030427,7]
[364891689,1749285062060,-151.0,0.00030427,7]
[364891690,1749285062070,-93993.07987276,0.00030427,2]
[364891691,1749285062079,-93993.07987276,0.00030427,2]
[364891692,1749285062089,-150.0,0.0003043,7]
[364891693,1749285062099,-279.10775981,0.00030433,7]
[364891694,1749285062108,-218.84593086,0.00030433,7]
[364891695,1749285062118,-150.0,0.00030441,7]
[364891696,1749285062127,-150.0,0.00030446,7]
[364891697,1749285062137,-279.10775981,0.00030452,7]
[364891698,1749285062147,-218.84593086,0.00030452,7]
[364891699,1749285062157,-150.0,0.00030458,7]
[364891700,1749285062167,-150.0,0.00030461,7]
[364891701,1749285062177,-150.0,0.00030461,7]
[364891702,1749285062187,-150.0,0.00030468,7]
[364891703,1749285062197,-279.10775981,0.00030472,7]
[364891704,1749285062206,-218.84593086,0.00030472,7]
[364891705,1749285062216,-5006.94251078,0.00030473,2]
[364891706,1749285062225,-150.0,0.00030474,7]
[364891707,1749285062235,-45314.76481893,0.0003049,2]
[364891708,1749285062244,-192.752747,0.0003049,7]
[364891709,1749285062253,-192.752747,0.0003049,7]
[364891710,1749285062263,-279.10775981,0.00030492,7]
[364891711,1749285062272,-218.84593086,0.00030492,7]
[364891712,1749285062282,-150.0,0.00030494,7]
[364891713,1749285062291,-152.0,0.00030496,5]
[364891714,1749285062300,-150.0,0.00030498,7]
[364891715,1749285062310,-150.0,0.00030502,7]
[364891716,1749285062320,-279.10775981,0.00030511,7]
[364891717,1749285062330,-218.84593086,0.00030511,7]
[364891718,1749285062339,-150.0,0.00030511,7]
[364891719,1749285062350,-150.0,0.00030511,7]
[364891720,1749285062360,-480.0,0.0003052,5]
[364891721,1749285062369,-636.82,0.0003052,5]
[364891722,1749285062379,-150.0,0.0003052,7]
[364891723,1749285062389,-150.0,0.0003053,7]
[364891724,1749285062399,-279.10775981,0.00030531,7]
[364891725,1749285062408,-218.84593086,0.00030531,7]
[364891726,1749285062419,-5005.48695,0.00030536,30]
[364891727,1749285062432,-150.0,0.00030538,7]
[364891728,1749285062444,-150.0,0.00030546,7]
[364891729,1749285062454,-279.10775981,0.00030551,7]
[364891730,1749285062464,-218.84593086,0.00030551,7]
[364891731,1749285062474,-1000.0,0.00030551,7]
[364891732,1749285062484,-150.0,0.00030558,7]
[364891733,1749285062493,-150.0,0.00030561,7]
[364891734,1749285062503,-279.10775981,0.0003057,7]
[364891735,1749285062513,-218.84593086,0.0003057,7]
[364891736,1749285062525,-150.0,0.00030573,7]
[364891737,1749285062535,-150.0,0.00030577,7]
[364891738,1749285062545,-150.0,0.00030585,7]
[364891739,1749285062555,-151.0,0.00030587,7]
[364891740,1749285062565,-151.0,0.00030587,7]
[364891741,1749285062576,-279.10775981,0.0003059,7]
[364891742,1749285062587,-218.84593086,0.0003059,7]
[364891743,1749285062597,-150.0,0.00030592,7]
[364891744,1749285062607,-150.0,0.00030592,7]
[364891745,1749285062617,-150.0,0.00030592,7]
[364891746,1749285062628,-150.0,0.00030599,7]
[364891747,1749285062637,-42044.0,0.000306,2]
[364891748,1749285062647,-279.10775981,0.0003061,7]
[364891749,1749285062656,-218.84593086,0.0003061,7]
[364891750,1749285062666,-150.0,0.00030611,7]
[364891751,1749285062677,-150.0,0.00030611,7]
[364891752,1749285062688,-150.0,0.00030613,7]
[364891753,1749285062701,-150.0,0.00030617,7]
[364891754,1749285062711,-271.58,0.0003062,2]
[364891755,1749285062721,-150.99,0.0003062,2]
[364891756,1749285062731,-5556.49,0.0003062,2]
[364891757,1749285062741,-150.99,0.0003062,2]
[364891758,1749285062751,-9999.99,0.0003062,2]
[364891759,1749285062761,-4294.74,0.0003062,2]
[364891760,1749285062771,-999.99,0.0003062,2]
[364891761,1749285062780,-150.0,0.00030625,7]
[364891762,1749285062790,-279.10775981,0.00030629,7]
[364891763,1749285062799,-218.84593086,0.00030629,7]
[364891764,1749285062809,-150.0,0.00030641,7]
[364891765,1749285062819,-279.10775981,0.00030649,7]
[364891766,1749285062829,-218.84593086,0.00030649,7]
[364891767,1749285062839,-150.0,0.00030652,7]
[364891768,1749285062849,-150.0,0.00030657,7]
[364891769,1749285062859,-150.0,0.00030661,7]
[364891770,1749285062868,-279.10775981,0.00030669,7]
[364891771,1749285062879,-218.84593086,0.00030669,7]
[364891772,1749285062889,-150.0,0.00030669,7]
[364891773,1749285062898,-150.0,0.00030673,7]
[364891774,1749285062908,-150.0,0.00030678,7]
[364891775,1749285062918,-480.0,0.00030684,5]
[364891776,1749285062929,-636.82,0.00030684,5]
[364891777,1749285062938,-151.0,0.00030684,7]
[364891778,1749285062949,-151.0,0.00030684,7]
[364891779,1749285062958,-151.0,0.00030684,7]
[364891780,1749285062968,-151.0,0.00030684,7]
[364891781,1749285062977,-151.0,0.00030684,7]
[364891782,1749285062987,-256.632091,0.00030684,7]
[364891783,1749285062997,-256.632091,0.00030684,7]
[364891784,1749285063006,-850.307111,0.00030684,7]
[364891785,1749285063017,-850.307111,0.00030684,7]
[364891786,1749285063027,-500.0,0.00030684,3]
[364891787,1749285063037,-1000.0,0.00030688,7]
[364891788,1749285063048,-279.10775981,0.00030688,7]
[364891789,1749285063058,-218.84593086,0.00030688,7]
[364891790,1749285063067,-150.0,0.00030697,7]
[364891791,1749285063079,-150.0,0.00030697,7]
[364891792,1749285063088,-150.0,0.00030697,7]
[364891793,1749285063099,-2000.0,0.00030699,2]
[364891794,1749285063109,-2000.0,0.00030699,2]
[364891795,1749285063118,-303.33,0.000307,2]
[364891796,1749285063128,-1528.52680746,0.000307,2]
[364891797,1749285063138,-150.0,0.00030704,7]
[364891798,1749285063149,-279.10775981,0.00030708,7]
[364891799,1749285063159,-218.84593086,0.00030708,7]
[364891800,1749285063169,-150.0,0.00030711,7]
[364891801,1749285063180,-150.0,0.00030724,7]
[364891802,1749285063190,-279.10775981,0.00030727,7]
[364891803,1749285063200,-218.84593086,0.00030727,7]
[364891804,1749285063211,-150.0,0.0003073,7]
[364891805,1749285063221,-150.0,0.00030736,7]
[364891806,1749285063231,-279.10775981,0.00030747,7]
[364891807,1749285063241,-218.84593086,0.00030747,7]
[364891808,1749285063250,-151.0,0.00030748,7]
[364891809,1749285063261,-151.0,0.00030748,7]
[364891810,1749285063271,-150.0,0.00030752,7]
[364891811,1749285063281,-150.0,0.00030754,7]
[364891812,1749285063291,-150.0,0.00030757,7]
[364891813,1749285063301,-150.0,0.00030761,7]
[364891814,1749285063311,-150.0,0.00030761,7]
[364891815,1749285063322,-279.10775981,0.00030767,7]
[364891816,1749285063332,-218.84593086,0.00030767,7]
[364891817,1749285063342,-150.0,0.00030776,7]
[364891818,1749285063352,-150.0,0.0003078,7]
[364891819,1749285063362,-150.0,0.00030783,7]
[364891820,1749285063372,-279.10775981,0.00030786,7]
[364891821,1749285063382,-218.84593086,0.00030786,7]
[364891822,1749285063393,-9694.41483592,0.000308,2]
[364891823,1749285063404,-197452.36,0.000308,7]
[364891824,1749285063415,-151.0,0.000308,7]
[364891825,1749285063425,-151.0,0.000308,7]
[364891826,1749285063434,-151.0,0.000308,7]
[364891827,1749285063445,-1439.761915,0.000308,7]
[364891828,1749285063455,-151.0,0.000308,7]
[364891829,1749285063466,-151.0,0.000308,7]
[364891830,1749285063476,-1439.761915,0.000308,7]
[364891831,1749285063486,-151.0,0.000308,7]
[364891832,1749285063497,-151.0,0.000308,7]
[364891833,1749285063507,-151.0,0.000308,7]
[364891834,1749285063517,-151.0,0.000308,7]
[364891835,1749285063528,-151.0,0.000308,7]
[364891836,1749285063538,-151.0,0.000308,7]
[364891837,1749285063548,-263.744879,0.000308,7]
[364891838,1749285063559,-263.744879,0.000308,7]
[364891839,1749285063569,-151.0,0.000308,7]
[364891840,1749285063579,-151.0,0.000308,7]
[364891841,1749285063590,-153.754553,0.000308,7]
[364891842,1749285063599,-153.754553,0.000308,7]
[364891843,1749285063610,-151.0,0.000308,7]
[364891844,1749285063619,-667.336566,0.000308,7]
[364891845,1749285063629,-667.336566,0.000308,7]
[364891846,1749285063639,-412.452198,0.000308,7]
[364891847,1749285063650,-412.452198,0.000308,7]
[364891848,1749285063660,-977.448713,0.000308,7]
[364891849,1749285063669,-977.448713,0.000308,7]
[364891850,1749285063680,-151.0,0.000308,7]
[364891851,1749285063691,-179.340194,0.000308,7]
[364891852,1749285063705,-179.340194,0.000308,7]
[364891853,1749285063716,-207.348431,0.000308,7]
[364891854,1749285063725,-196.779148,0.000308,7]
[364891855,1749285063735,-196.779148,0.000308,7]
[364891856,1749285063747,-862.422387,0.000308,7]
[364891857,1749285063758,-862.422387,0.000308,7]
[364891858,1749285063768,-151.0,0.000308,7]
[364891859,1749285063780,-290.774772,0.000308,7]
[364891860,1749285063790,-177.040968,0.000308,7]
[364891861,1749285063801,-1642.080816,0.000308,7]
[364891862,1749285063812,-151.0,0.000308,7]
[364891863,1749285063822,-177.040974,0.000308,7]
[364891864,1749285063833,-1642.080816,0.000308,7]
[364891865,1749285063843,-151.0,0.000308,7]
[364891866,1749285063853,-252.148778,0.000308,7]
[364891867,1749285063863,-463.505806,0.000308,7]
[364891868,1749285063874,-645.346851,0.000308,7]
[364891869,1749285063884,-463.505806,0.000308,7]
[364891870,1749285063894,-645.346851,0.000308,7]
[364891871,1749285063905,-2026.87948,0.000308,7]
[364891872,1749285063915,-2026.87948,0.000308,7]
[364891873,1749285063925,-151.0,0.000308,7]
[364891874,1749285063935,-155.562117,0.000308,7]
[364891875,1749285063946,-155.562114,0.000308,7]
[364891876,1749285063956,-205.49714,0.000308,7]
[364891877,1749285063967,-205.49714,0.000308,7]
[364891878,1749285063978,-279.10775981,0.00030806,7]
[364891879,1749285063988,-218.84593086,0.00030806,7]
[364891880,1749285063999,-150.0,0.00030808,7]
[364891881,1749285064009,-150.0,0.00030809,7]
[364891882,1749285064020,-150.0,0.00030811,7]
[364891883,1749285064030,-150.0,0.00030816,7]
[364891884,1749285064041,-1000.0,0.00030825,7]
[364891885,1749285064052,-279.10775981,0.00030826,7]
[364891886,1749285064064,-218.84593086,0.00030826,7]
[364891887,1749285064074,-150.0,0.00030835,7]
[364891888,1749285064084,-150.0,0.00030835,7]
[364891889,1749285064094,-150.0,0.00030835,7]
[364891890,1749285064104,-150.0,0.00030835,7]
[364891891,1749285064115,-150.0,0.00030835,7]
[364891892,1749285064126,-150.0,0.00030835,7]
[364891893,1749285064136,-279.10775981,0.00030845,7]
[364891894,1749285064147,-218.84593086,0.00030845,7]
[364891895,1749285064377,-480.0,0.00030849,5]
[364891896,1749285064388,-636.82,0.00030849,5]
[364891897,1749285064399,-240.033009,0.00030849,7]
[364891898,1749285064409,-151.0,0.00030849,7]
[364891899,1749285064419,-1000.0,0.00030849,2]
[364891900,1749285064430,-150.0,0.00030855,7]
[364891901,1749285064440,-150.0,0.0003086,7]
[364891902,1749285064450,-150.0,0.00030862,7]
[364891903,1749285064460,-150.0,0.00030863,7]
[364891904,1749285064471,-279.10775981,0.00030865,7]
[364891905,1749285064481,-218.84593086,0.00030865,7]
[364891906,1749285064491,-279.10775981,0.00030885,7]
[364891907,1749285064501,-218.84593086,0.00030885,7]
[364891908,1749285064512,-150.0,0.00030888,7]
[364891909,1749285064522,-150.0,0.00030891,7]
[364891910,1749285064532,-150.0,0.00030895,7]
[364891911,1749285064543,-279.10775981,0.00030904,7]
[364891912,1749285064553,-218.84593086,0.00030904,7]
[364891913,1749285064564,-150.0,0.0003091,7]
[364891914,1749285064574,-150.0,0.0003091,7]
[364891915,1749285064584,-150.0,0.00030914,7]
[364891916,1749285064594,-150.0,0.00030917,7]
[364891917,1749285064604,-150.0,0.00030919,7]
[364891918,1749285064615,-279.10775981,0.00030924,7]
[364891919,1749285064626,-218.84593086,0.00030924,7]
[364891920,1749285064636,-2985.2313671,0.00030934,24]
[364891921,1749285064646,-150.0,0.00030935,7]
[364891922,1749285064655,-150.0,0.00030941,7]
[364891923,1749285064665,-279.10775981,0.00030944,7]
[364891924,1749285064675,-218.84593086,0.00030944,7]
[364891925,1749285064685,-150.0,0.00030947,7]
[364891926,1749285064697,-150.0,0.0003096,7]
[364891927,1749285064707,-1000.0,0.00030962,7]
[364891928,1749285064717,-279.10775981,0.00030963,7]
[364891929,1749285064727,-218.84593086,0.00030963,7]
[364891930,1749285064737,-150.0,0.00030967,7]
[364891931,1749285064747,-150.0,0.00030974,7]
[364891932,1749285064756,-150.0,0.00030974,7]
[364891933,1749285064766,-150.0,0.00030974,7]
[364891934,1749285064776,-279.10775981,0.00030983,7]
[364891935,1749285064788,-218.84593086,0.00030983,7]
[364891936,1749285064798,-150.0,0.00030993,7]
[364891937,1749285064808,-150.0,0.00030998,7]
[364891938,1749285064818,-50000.0,0.00031,20]
[364891939,1749285064828,-1370.0,0.00031,5]
[364891940,1749285064838,-1370.0,0.00031,5]
[364891941,1749285064848,-1370.0,0.00031,5]
[364891942,1749285064858,-1370.0,0.00031,5]
[364891943,1749285064868,-1370.0,0.00031,5]
[364891944,1749285064879,-10000.0,0.00031,20]
[364891945,1749285064889,-1800.0,0.00031,32]
[364891946,1749285064899,-379.97841273,0.00031,2]
[364891947,1749285064908,-354.10106967,0.00031,2]
[364891948,1749285064918,-1000.0,0.00031,30]
[364891949,1749285064928,-400.0,0.00031,30]
[364891950,1749285064940,-300.0,0.00031,2]
[364891951,1749285064951,-3177.13328988,0.00031,2]
[364891952,1749285064961,-150.0,0.00031002,2]
[364891953,1749285064971,-150.0,0.00031002,7]
[364891954,1749285064982,-279.10775981,0.00031002,7]
[364891955,1749285064992,-218.84593086,0.00031002,7]
[364891956,1749285065001,-150.0,0.0003101,7]
[364891957,1749285065011,-151.0,0.00031012,7]
[364891958,1749285065022,-292.54228028,0.00031013,5]
[364891959,1749285065032,-636.82,0.00031013,5]
[364891960,1749285065042,-151.0,0.00031013,7]
[364891961,1749285065051,-151.0,0.00031013,7]
[364891962,1749285065062,-151.0,0.00031013,7]
[364891963,1749285065071,-256.632091,0.00031013,7]
[364891964,1749285065081,-256.632091,0.00031013,7]
[364891965,1749285065094,-850.307111,0.00031013,7]
[364891966,1749285065105,-850.307111,0.00031013,7]
[364891967,1749285065115,-150.0,0.00031014,7]
[364891968,1749285065126,-334.0,0.00031016,2]
[364891969,1749285065136,-265.0,0.00031016,2]
[364891970,1749285065146,-458.0,0.00031016,2]
[364891971,1749285065156,-2000.0,0.00031016,2]
[364891972,1749285065165,-589.0,0.00031016,2]
[364891973,1749285065175,-1274.0,0.00031016,2]
[364891974,1749285065185,-557.0,0.00031016,2]
[364891975,1749285065195,-1255.0,0.00031016,2]
[364891976,1749285065205,-1159.0,0.00031016,2]
[364891977,1749285065216,-150.0,0.00031019,7]
[364891978,1749285065225,-279.10775981,0.00031022,7]
[364891979,1749285065235,-218.84593086,0.00031022,7]
[364891980,1749285065247,-150.0,0.0003103,7]
[364891981,1749285065257,-279.10775981,0.00031042,7]
[364891982,1749285065267,-218.84593086,0.00031042,7]
[364891983,1749285065276,-150.0,0.00031046,7]
[364891984,1749285065286,-150.0,0.00031054,7]
[364891985,1749285065296,-150.0,0.00031058,7]
[364891986,1749285065305,-150.0,0.0003106,7]
[364891987,1749285065315,-150.0,0.0003106,7]
[364891988,1749285065324,-279.10775981,0.00031061,7]
[364891989,1749285065334,-218.84593086,0.00031061,7]
[364891990,1749285065345,-150.0,0.00031071,2]
[364891991,1749285065355,-1162.98,0.00031071,2]
[364891992,1749285065365,-1162.98,0.00031071,2]
[364891993,1749285065375,-1162.98,0.00031071,2]
[364891994,1749285065385,-150.0,0.00031072,7]
[364891995,1749285065398,-150.0,0.00031079,7]
[364891996,1749285065408,-150.0,0.00031079,7]
[364891997,1749285065417,-150.0,0.00031079,7]
[364891998,1749285065427,-279.10775981,0.00031081,7]
[364891999,1749285065436,-218.84593086,0.00031081,7]
[364892000,1749285065447,-150.0,0.00031086,7]
[364892001,1749285065457,-150.0,0.00031094,7]
[364892002,1749285065467,-150.0,0.00031098,7]
[364892003,1749285065477,-1000.0,0.00031099,7]
[364892004,1749285065487,-279.10775981,0.00031101,7]
[364892005,1749285065497,-218.84593086,0.00031101,7]
[364892006,1749285065506,-3569.9335084,0.00031104,2]
[364892007,1749285065516,-150.0,0.0003111,7]
[364892008,1749285065526,-150.0,0.00031113,7]
[364892009,1749285065536,-155.19,0.00031118,2]
[364892010,1749285065546,-279.10775981,0.0003112,7]
[364892011,1749285065556,-218.84593086,0.0003112,7]
[364892012,1749285065565,-150.0,0.00031125,7]
[364892013,1749285065574,-150.0,0.00031133,7]